bitfinex/quotes_ETHUSD_20260108
["timestamp","ask_amount","ask_price","bid_price","bid_amount"]
[1767882667497,13.02761852,3070.4,3069.0,1e-08]
[1767882667666,1.012,3070.3,3069.0,1e-08]
[1767882667866,1.40396185,3070.2,3069.0,1e-08]
[1767882668063,0.852,3070.1,3069.0,1e-08]
[1767882668260,1.40396185,3070.2,3069.0,1e-08]
[1767882668696,9.77071389,3070.4,3069.0,1e-08]
[1767882669078,13.02761852,3070.4,3069.0,1e-08]
[1767882669282,0.852,3070.3,3069.0,1e-08]
[1767882669592,0.852,3070.3,3068.4,0.002]
[1767882669593,9.77198697,3070.0,3068.4,0.002]
[1767882669891,1.44684089,3069.9,3068.4,0.002]
[1767882670093,4.1112844,3069.0,3068.0,0.002]
[1767882670293,4.1112844,3069.0,3066.8,0.002]
[1767882670294,1.17501719,3068.4,3066.8,0.002]
[1767882670494,4.1112844,3068.0,3066.8,0.002]
[1767882670694,0.852,3068.1,3066.8,0.002]
[1767882670894,0.852,3068.1,3066.8,3.2626986]
[1767882671095,0.852,3068.1,3066.8,0.002]
[1767882671404,0.852,3068.9,3066.8,0.002]
[1767882671596,7.36906379,3068.9,3066.8,0.002]
[1767882671798,0.852,3068.9,3067.1,0.05851375]
[1767882671965,7.36903786,3068.9,3066.9,0.05851375]
[1767882672165,0.73690379,3068.8,3066.8,0.06051375]
[1767882672398,0.73690379,3068.8,3066.8,0.002]
[1767882672603,6.51593144,3069.4,3067.4,0.05851375]
[1767882672831,6.51593144,3069.4,3067.2,0.05851375]
[1767882672832,0.853,3069.3,3067.2,0.05851375]
[1767882673136,0.853,3069.3,3066.8,0.002]
[1767882673323,0.853,3069.3,3067.3,0.05851375]
[1767882673496,6.51656836,3069.1,3067.4,6.52017994]
[1767882673691,3.25828418,3069.1,3067.4,6.52017994]
[1767882674308,6.51656836,3069.1,3067.4,3.26008997]
[1767882674605,0.73689314,3069.2,3067.5,0.05851375]
[1767882674807,4.11078045,3069.6,3067.7,0.05851375]
[1767882675013,0.853,3069.6,3067.8,0.05851375]
[1767882675209,4.11075597,3069.6,3067.7,0.91051375]
[1767882675424,0.4110756,3069.5,3067.4,6.52017994]
[1767882675606,0.4110756,3069.5,3066.5,0.05851375]
[1767882675607,9.83241091,3069.4,3066.5,0.05851375]
[1767882675925,6.51593144,3069.4,3067.3,0.05851375]
[1767882676148,6.51593144,3069.4,3066.8,7.37395565]
[1767882676149,0.05851375,3069.2,3066.8,0.002]
[1767882676297,0.21851375,3069.2,3066.8,0.002]
[1767882676497,0.853,3069.1,3067.0,3.26051516]
[1767882676735,0.16,3069.0,3066.8,0.002]
[1767882676901,0.16,3068.3,3066.2,3.26135147]
[1767882677100,1.28012844,3068.2,3066.0,0.05851375]
[1767882677435,4.1112844,3067.9,3065.5,1.43130165]
[1767882677635,9.7789947,3067.8,3065.6,6.52400834]
[1767882677797,9.7789947,3067.8,3065.7,0.05851375]
[1767882678135,3.2596649,3067.8,3067.3,0.002]
[1767882678428,3.2596649,3067.8,3066.2,0.05851375]
[1767882678429,0.32596649,3067.7,3066.2,0.05851375]
[1767882678596,0.32596649,3067.7,3067.0,0.002]
[1767882678796,0.853,3068.3,3067.0,0.002]
[1767882679050,10.63043892,3068.3,3067.0,0.002]
[1767882679207,0.16,3067.6,3065.7,0.002]
[1767882679398,0.853,3067.5,3065.7,0.002]
[1767882679601,3.26008997,3067.4,3065.7,0.002]
[1767882679832,0.6927007,3069.3,3066.7,0.05851375]
[1767882679996,4.1112844,3070.5,3067.5,1.00666972]
[1767882680205,6.51190048,3071.3,3070.0,0.003]
[1767882680410,3.25515147,3072.1,3070.1,0.05851375]
[1767882680634,4.1112844,3071.8,3070.0,0.003]
[1767882680842,13.97564156,3072.4,3070.0,0.003]
[1767882680843,1.26412844,3071.7,3070.0,0.003]
[1767882681051,0.853,3071.7,3070.0,0.003]
[1767882681411,4.1112844,3071.6,3070.0,0.003]
[1767882681645,0.05851375,3071.3,3070.0,0.003]
[1767882681807,4.1112844,3071.3,3070.0,0.003]
[1767882682138,0.05851375,3070.6,3068.7,6.51741778]
[1767882682311,4.1112844,3071.3,3068.7,6.51741778]
[1767882682638,0.65114765,3071.4,3068.6,3.25880802]
[1767882682639,4.1112844,3070.8,3068.6,3.25880802]
[1767882682836,4.1112844,3069.8,3067.5,0.05851375]
[1767882683042,0.05851375,3069.6,3067.3,3.26011955]
[1767882683243,0.853,3069.7,3068.0,3.25937528]
[1767882683419,0.853,3069.6,3067.2,0.94815597]
[1767882683734,3.25785958,3069.5,3067.5,1.00666972]
[1767882683962,9.77357874,3069.5,3067.3,3.26019626]
[1767882684135,0.97735787,3069.4,3067.3,6.52039252]
[1767882684336,0.97735787,3069.4,3067.2,3.26030045]
[1767882684539,0.97735787,3069.4,3067.5,0.05851375]
[1767882684716,3.25779762,3069.6,3067.7,0.05851375]
[1767882685047,4.11069186,3069.7,3067.9,0.05851375]
[1767882685257,7.36838372,3069.7,3067.7,0.91051375]
[1767882685465,7.36838372,3069.7,3067.5,0.94815597]
[1767882685645,1.06260235,3069.6,3067.9,0.05851375]
[1767882685947,3.25776613,3069.6,3067.6,6.51975484]
[1767882686143,9.77328571,3069.6,3067.6,3.25987742]
[1767882686313,6.51551958,3069.6,3067.6,6.51975484]
[1767882686514,0.853,3069.7,3067.6,6.51975484]
[1767882686515,0.853,3069.7,3067.9,0.05851375]
[1767882686756,0.853,3069.7,3067.6,13.03950968]
[1767882686757,10.62595668,3069.7,3067.6,7.37175484]
[1767882687051,10.62595668,3069.7,3067.6,3.25987742]
[1767882687257,13.88361136,3069.7,3067.2,0.05851375]
[1767882687472,0.21851375,3068.5,3065.8,0.94815597]
[1767882687756,0.21851375,3068.5,3065.5,1.43130165]
[1767882687757,0.05851375,3067.9,3065.6,6.52400834]
[1767882687956,2.16263234,3067.8,3065.6,6.52400834]
[1767882688125,2.16263234,3067.8,3065.6,6.58252209]
[1767882688315,1.30963234,3067.8,3066.0,0.05851375]
[1767882688514,0.853,3068.0,3066.2,0.05851375]
[1767882688714,0.853,3068.7,3066.9,0.05851375]
[1767882689129,0.853,3068.7,3067.1,0.05851375]
[1767882689720,0.853,3068.7,3067.4,6.52017994]
[1767882690114,6.51444578,3070.1,3067.5,0.05851375]
[1767882690335,0.16,3069.3,3066.7,0.05851375]
[1767882690620,0.16,3068.8,3066.4,0.05851375]
[1767882690915,0.05851375,3069.5,3066.4,0.05851375]
[1767882690916,0.05851375,3069.5,3066.6,0.05851375]
[1767882691137,0.16,3069.3,3067.3,3.26019424]
[1767882691490,4.1112844,3069.9,3067.3,6.5203905]
[1767882691646,3.25751529,3069.9,3067.4,0.05851375]
[1767882691811,9.77198697,3070.0,3067.6,0.05851375]
[1767882692019,6.5127487,3070.9,3068.5,0.05851375]
[1767882692349,1.50437487,3070.8,3068.7,0.05851375]
[1767882692549,1.50437487,3070.8,3069.2,4.1112844]
[1767882692848,3.25637435,3070.9,3069.3,0.05851375]
[1767882693013,0.854,3071.0,3069.5,0.05851375]
[1767882693213,7.36664676,3071.0,3069.5,0.05851375]
[1767882693517,7.36664676,3071.0,3069.9,0.05851375]
[1767882693518,0.001,3071.0,3069.9,0.05851375]
[1767882693735,0.001,3071.0,3070.1,0.05851375]
[1767882694122,0.001,3071.0,3070.0,3.25732899]
[1767882694659,9.76244712,3073.0,3070.7,0.05851375]
[1767882694951,3.25309799,3074.0,3072.4,0.05851375]
[1767882695149,0.05951375,3075.5,3072.4,0.05851375]
[1767882695150,0.853,3074.1,3072.6,0.05851375]
[1767882695360,0.853,3074.1,3072.8,0.05851375]
[1767882695516,0.853,3074.1,3072.1,0.05851375]
[1767882695717,0.853,3074.1,3071.2,0.852]
[1767882695718,4.1112844,3073.7,3071.2,0.852]
[1767882696017,4.1112844,3072.7,3070.1,0.16931768]
[1767882696232,4.1112844,3072.7,3069.8,0.05851375]
[1767882696233,4.1112844,3072.2,3070.2,3.25710571]
[1767882696464,0.853,3072.6,3070.7,3.2565658]
[1767882696618,0.853,3073.0,3071.5,3.25573599]
[1767882696944,0.853,3073.4,3071.2,3.25596038]
[1767882697150,0.853,3073.4,3070.6,3.25660528]
[1767882697151,4.1112844,3072.6,3070.2,3.25711006]
[1767882697339,0.853,3072.5,3070.4,3.2568787]
[1767882697541,0.49642844,3072.4,3070.3,3.31543622]
[1767882697744,3.25489047,3072.3,3070.7,0.05851375]
[1767882697948,3.25489047,3072.3,3070.9,0.05851375]
[1767882698145,6.50978094,3072.3,3070.7,0.05851375]
[1767882698375,0.70062094,3072.2,3070.8,0.05851375]
[1767882698522,0.70062094,3072.2,3070.6,0.05851375]
[1767882699000,0.70062094,3072.2,3070.4,3.25689902]
[1767882699274,0.70062094,3072.2,3069.8,3.31600837]
[1767882699275,0.70062094,3072.2,3070.0,0.05851375]
[1767882699553,0.70062094,3072.2,3070.1,0.05851375]
[1767882699757,3.25520833,3072.0,3070.3,0.05851375]
[1767882699958,4.10820833,3072.0,3070.5,0.05851375]
[1767882700264,3.25333703,3073.8,3071.1,0.05851375]
[1767882700425,7.3602393,3073.5,3071.6,0.05851375]
[1767882700621,10.61385895,3073.5,3071.6,0.05851375]
[1767882700826,4.1112844,3073.3,3070.9,0.05851375]
[1767882701055,0.41112844,3073.2,3071.5,0.05851375]
[1767882701225,10.61385895,3073.5,3071.3,0.05851375]
[1767882701429,6.5072393,3073.5,3071.5,0.05851375]
[1767882701723,6.50766276,3073.3,3071.6,3.25563224]
[1767882701928,0.853,3073.2,3071.3,0.05851375]
[1767882702129,1.06144941,3073.1,3071.3,3.25594566]
[1767882702425,1.06144941,3073.1,3071.1,0.05851375]
[1767882702631,1.06144941,3073.1,3071.4,3.25582278]
[1767882702849,1.06144941,3073.1,3070.9,1.88151444]
[1767882703060,1.06144941,3073.1,3070.7,0.002]
[1767882703061,4.1112844,3072.8,3070.7,0.002]
[1767882703391,4.1112844,3072.3,3070.7,0.002]
[1767882703678,0.853,3072.2,3070.7,0.002]
[1767882703849,9.76530711,3072.1,3070.7,0.002]
[1767882704047,4.1112844,3071.3,3070.4,1e-08]
[1767882704354,0.05851375,3071.9,3069.1,0.002]
[1767882704355,4.1112844,3070.8,3069.1,0.002]
[1767882705256,0.05851375,3071.2,3069.1,0.002]
[1767882705257,0.853,3070.7,3069.1,0.002]
[1767882705607,4.1112844,3071.7,3069.2,0.05851375]
[1767882705762,1.26412844,3071.6,3069.7,3.25762672]
[1767882706092,1.38733488,3072.0,3069.4,3.31646307]
[1767882706093,1.38733488,3072.0,3070.4,0.05851375]
[1767882706386,6.51020474,3072.1,3070.1,0.05851375]
[1767882706680,6.51020474,3072.1,3069.8,0.97100069]
[1767882706681,9.76530711,3072.1,3069.9,0.05851375]
[1767882706893,9.76530711,3072.1,3070.1,0.05851375]
[1767882706894,6.51020474,3072.1,3070.1,0.05851375]
[1767882707059,9.76530711,3072.1,3069.6,0.05851375]
[1767882707248,5.08781511,3072.0,3069.6,0.05851375]
[1767882707451,0.853,3071.9,3069.8,0.05851375]
[1767882707680,0.853,3071.9,3070.0,0.05851375]
[1767882707879,0.853,3071.9,3069.7,3.25764732]
[1767882707880,9.76626081,3071.8,3069.7,3.25764732]
[1767882708095,1.06192608,3071.7,3069.7,3.25764732]
[1767882708384,1.06192608,3071.7,3069.6,3.25771086]
[1767882708584,1.06192608,3071.7,3069.2,0.05851375]
[1767882708769,4.1112844,3071.3,3069.1,0.002]
[1767882709080,4.1112844,3071.3,3069.6,3.25772252]
[1767882709283,0.41112844,3071.2,3069.6,6.51547597]
[1767882709490,1.06192608,3071.7,3069.6,6.51547597]
[1767882709659,1.06192608,3071.7,3069.8,0.05851375]
[1767882709859,1.06192608,3071.7,3069.9,3.25743509]
[1767882709860,9.76689672,3071.6,3069.9,3.25743509]
[1767882710063,9.76689672,3071.6,3069.8,6.51504163]
[1767882710295,9.76689672,3071.6,3069.8,9.77258283]
[1767882710296,3.25563224,3071.6,3069.8,9.77258283]
[1767882710484,6.51126448,3071.6,3069.8,6.51504163]
[1767882710682,16.2781612,3071.6,3068.8,0.05851375]
[1767882710880,4.1112844,3071.1,3069.1,0.002]
[1767882711092,0.853,3071.0,3069.1,0.002]
[1767882711381,0.853,3071.0,3069.6,3.25766742]
[1767882711602,0.853,3071.0,3069.2,3.25809799]
[1767882711807,0.853,3071.0,3069.1,0.002]
[1767882712008,9.76912305,3070.9,3069.1,0.002]
[1767882712225,1.0622123,3070.8,3069.1,0.002]
[1767882712516,6.5127487,3070.9,3069.1,0.002]
[1767882712720,9.76912305,3070.9,3069.1,0.002]
[1767882713094,4.1112844,3070.7,3069.1,0.002]
[1767882713299,9.76912305,3070.9,3069.1,0.002]
[1767882713606,0.16,3070.7,3069.1,0.002]
[1767882713930,13.0284672,3070.2,3069.1,0.002]
[1767882714215,0.853,3070.1,3069.1,0.002]
[1767882714783,3.2571168,3070.2,3069.1,0.002]
[1767882715016,3.2571168,3070.2,3070.1,0.002]
[1767882715017,9.7713504,3070.2,3070.1,0.002]
[1767882715226,9.7713504,3070.2,3069.1,2.02e-06]
[1767882715227,3.58282848,3070.2,3069.1,2.02e-06]
[1767882715521,6.83994528,3070.2,3069.1,2.02e-06]
[1767882715683,6.83994528,3070.2,3069.8,0.002]
[1767882715886,3.58282848,3070.2,3069.8,0.002]
[1767882716113,4.10982016,3070.5,3069.8,0.002]
[1767882716784,4.10980687,3070.5,3069.8,0.002]
[1767882717017,7.36661374,3070.5,3069.8,0.002]
[1767882717217,6.51211252,3071.2,3069.8,0.002]
[1767882717530,1.50431125,3071.1,3069.8,0.002]
[1767882718018,6.51253662,3071.0,3069.8,0.002]
[1767882718323,3.25609828,3071.2,3069.8,0.002]
[1767882718615,6.51297842,3071.3,3069.8,0.002]
[1767882718783,9.76896763,3071.3,3069.8,0.002]
[1767882718985,0.001,3071.3,3069.8,0.002]
[1767882719812,0.05851375,3073.2,3070.6,0.05851375]
[1767882720012,0.05851375,3073.2,3070.7,6.51317288]
[1767882720013,13.86917256,3073.1,3070.7,6.51317288]
[1767882720188,10.61512942,3073.1,3070.8,0.05851375]
[1767882720511,10.61512942,3073.1,3070.7,6.57168663]
[1767882720686,1.06151294,3073.0,3070.7,6.51317288]
[1767882720887,0.853,3073.1,3071.2,3.48888985]
[1767882721089,3.25290553,3074.2,3071.2,3.48888985]
[1767882721090,3.25340794,3073.7,3071.7,3.4303761]
[1767882721285,0.05851375,3074.3,3072.2,3.4303761]
[1767882721625,3.42773683,3075.1,3072.2,3.4303761]
[1767882721626,0.00635671,3075.1,3073.3,3.4303761]
[1767882721792,0.00635671,3075.1,3073.9,0.05851375]
[1767882721992,3.25833427,3075.1,3072.9,6.74305091]
[1767882722315,6.51031183,3075.1,3073.3,0.852]
[1767882722483,6.51031183,3075.1,3073.7,3.25330743]
[1767882722484,3.25833427,3075.1,3073.7,3.25330743]
[1767882722688,9.76228939,3075.1,3072.9,0.92770194]
[1767882722901,0.32583343,3075.0,3073.0,0.05851375]
[1767882723116,0.32583343,3075.0,3073.7,3.25333653]
[1767882723333,3.25828347,3075.1,3072.9,0.05851375]
[1767882723541,3.25828347,3075.1,3072.3,3.25478668]
[1767882723542,6.51022411,3075.1,3073.5,0.05851375]
[1767882723828,3.25830362,3075.1,3073.4,0.05851375]
[1767882724121,0.00635671,3075.1,3073.7,3.25340794]
[1767882724420,0.00635671,3075.1,3072.2,0.98621569]
[1767882724421,3.4303761,3074.9,3072.2,0.98621569]
[1767882724623,3.4303761,3074.4,3071.7,0.05851375]
[1767882724832,0.05851375,3074.6,3070.6,0.66001093]
[1767882724833,3.4303761,3073.4,3070.6,0.66001093]
[1767882724987,3.4303761,3072.9,3070.6,0.66001093]
[1767882725184,0.40155136,3072.8,3071.0,3.25625017]
[1767882725509,0.40155136,3072.8,3071.4,3.25583194]
[1767882725510,0.34303761,3072.8,3071.4,3.25583194]
[1767882725706,3.4303761,3074.3,3071.4,6.51168848]
[1767882726020,0.05851375,3074.4,3070.7,0.05851375]
[1767882726021,6.50787452,3073.2,3070.7,0.05851375]
[1767882726236,7.35987452,3073.2,3071.1,0.05851375]
[1767882726395,3.25393726,3073.2,3071.5,0.05851375]
[1767882726719,3.25340794,3073.7,3071.3,0.05851375]
[1767882726897,0.41054079,3073.6,3071.6,0.05851375]
[1767882727828,0.41054079,3073.6,3071.3,0.05851375]
[1767882727989,6.5072393,3073.5,3071.1,0.90951375]
[1767882728191,6.50427656,3074.9,3072.3,0.05851375]
[1767882728391,3.25213828,3074.9,3073.1,0.05851375]
[1767882728695,3.75558993,3074.8,3072.5,0.05851375]
[1767882728896,3.75558993,3074.8,3072.7,0.05851375]
[1767882729099,0.32521383,3074.8,3072.7,0.05851375]
[1767882729286,0.32521383,3074.8,3072.4,4.2813761]
[1767882729488,1.86016287,3074.7,3072.7,0.05851375]
[1767882729692,0.32521383,3074.8,3072.7,0.05851375]
[1767882729693,0.32521383,3074.8,3073.3,0.05851375]
[1767882729889,6.50321908,3075.4,3073.1,0.05851375]
[1767882730111,3.25160954,3075.4,3073.2,6.50787452]
[1767882730428,0.001,3075.5,3074.3,0.05851375]
[1767882730722,3.24991875,3077.0,3075.1,0.05851375]
[1767882730924,0.32509187,3076.9,3075.3,0.05851375]
[1767882731122,0.32509187,3076.9,3075.7,0.05851375]
[1767882731533,3.25083376,3077.1,3075.3,0.05851375]
[1767882731727,6.50066752,3077.1,3074.5,1.0474598]
[1767882732022,3.25083376,3077.1,3075.2,3.25182101]
[1767882732232,0.65005413,3077.0,3075.2,3.25182101]
[1767882732429,0.65005413,3077.0,3074.1,0.851]
[1767882732430,3.4303761,3076.8,3074.1,0.851]
[1767882732590,0.852,3076.7,3074.1,0.851]
[1767882732798,3.4303761,3076.3,3074.4,3.25259829]
[1767882733132,3.4303761,3076.3,3074.0,0.05851375]
[1767882733350,0.91051375,3076.7,3074.0,0.05851375]
[1767882733351,0.34303761,3076.2,3074.2,0.05851375]
[1767882733498,0.91051375,3076.7,3074.0,0.05851375]
[1767882733825,0.852,3076.6,3074.0,0.05851375]
[1767882734043,3.25055259,3076.4,3074.3,0.05851375]
[1767882734228,13.00221036,3076.4,3074.1,3.25298461]
[1767882734426,3.4303761,3075.9,3074.0,3.25307306]
[1767882734640,0.34303761,3075.8,3074.0,6.50616349]
[1767882734825,1.19503761,3075.8,3073.8,0.851]
[1767882735013,1.19503761,3075.8,3073.1,0.90951375]
[1767882735419,1.19503761,3075.8,3073.8,3.25330016]
[1767882735753,0.852,3075.7,3073.1,0.851]
[1767882735949,0.852,3075.6,3073.7,3.25340604]
[1767882736151,9.75451146,3075.5,3073.2,0.05851375]
[1767882736536,3.4303761,3075.4,3072.8,0.98894605]
[1767882736834,3.4303761,3074.4,3072.7,3.25438346]
[1767882737037,0.852,3074.3,3072.5,3.25462799]
[1767882737219,0.852,3074.3,3072.3,0.05851375]
[1767882737426,0.852,3074.3,3072.5,3.25467551]
[1767882737849,0.852,3074.3,3072.9,3.25422433]
[1767882738048,0.852,3074.3,3072.1,0.05851375]
[1767882738251,9.75863637,3074.2,3072.5,3.25467411]
[1767882738456,9.75863637,3074.2,3071.7,0.05851375]
[1767882738457,3.4303761,3074.0,3071.3,0.05851375]
[1767882738750,0.34303761,3073.9,3072.0,0.05851375]
[1767882739050,0.852,3073.9,3072.6,3.25457267]
[1767882739368,0.852,3074.1,3072.6,3.25453599]
[1767882740048,0.852,3074.1,3072.0,0.851]
[1767882740220,6.50618086,3074.0,3072.1,6.51020474]
[1767882740432,4.16619419,3073.9,3071.7,3.2555033]
[1767882740636,3.4303761,3073.4,3071.0,0.05851375]
[1767882740855,3.4303761,3073.4,3071.1,0.01639438]
[1767882740856,0.852,3073.3,3071.1,0.01639438]
[1767882741072,0.42823761,3073.2,3071.1,0.18583404]
[1767882741363,3.4303761,3072.9,3071.1,0.18583404]
[1767882741595,0.852,3072.8,3070.9,0.002]
[1767882741761,3.4303761,3072.4,3070.9,0.002]
[1767882742074,3.4303761,3071.9,3070.9,0.002]
[1767882742273,3.25542027,3071.8,3070.9,0.002]
[1767882742479,3.25448554,3072.7,3070.9,0.002]
[1767882742480,3.25446675,3072.7,3070.9,0.002]
[1767882742761,0.852,3072.6,3070.9,0.002]
[1767882742982,3.25404314,3073.1,3071.2,0.05851375]
[1767882743132,6.50816714,3073.1,3071.0,0.05851375]
[1767882743330,3.4303761,3072.9,3070.9,0.002]
[1767882743530,6.50816714,3073.1,3070.9,0.002]
[1767882743531,9.76221028,3073.1,3070.9,0.002]
[1767882743758,1.10424479,3073.0,3070.9,0.002]
[1767882743956,0.852,3072.9,3070.9,0.002]
[1767882744160,0.852,3072.9,3071.1,9.76848684]
[1767882744368,4.10625493,3072.9,3071.2,0.05851375]
[1767882744546,6.50681588,3073.7,3071.2,0.90951375]
[1767882744740,1.82801747,3073.6,3071.4,0.05851375]
[1767882744942,1.82801747,3073.6,3071.5,0.01639264]
[1767882745240,3.25333183,3073.8,3072.0,0.05851375]
[1767882745438,3.25287879,3074.2,3072.1,0.07490318]
[1767882745764,0.852,3074.3,3072.5,0.05851375]
[1767882745960,3.25266718,3074.4,3072.7,0.05851375]
[1767882746160,3.25266718,3074.4,3072.9,6.50850986]
[1767882746490,3.25266718,3074.4,3072.2,3.4303761]
[1767882746491,9.75800154,3074.4,3072.4,0.851]
[1767882746690,3.4303761,3074.0,3071.4,0.05851375]
[1767882746985,9.81651529,3074.4,3072.8,3.25430496]
[1767882747292,6.50469964,3074.7,3072.8,6.5086658]
[1767882747438,6.50495249,3075.1,3073.1,0.05851375]
[1767882747639,6.50495249,3075.1,3072.8,9.76302664]
[1767882748068,0.001,3075.1,3073.1,1.67955575]
[1767882748301,0.853,3075.1,3073.4,3.25372551]
[1767882748608,0.001,3075.1,3073.4,9.76117653]
[1767882748897,0.852,3075.0,3073.4,3.25372551]
[1767882749073,0.91051375,3075.0,3072.6,3.25454469]
[1767882749273,0.05851375,3075.0,3073.3,6.50763197]
[1767882749480,0.001,3075.1,3073.3,6.50763197]
[1767882749698,0.852,3075.0,3073.3,6.50763197]
[1767882750398,9.81492859,3074.9,3072.8,6.50872168]
[1767882751503,9.81492859,3074.9,3071.9,3.48888985]
[1767882751504,3.48888985,3074.6,3071.9,0.05851375]
[1767882751670,0.34888899,3074.5,3072.5,3.25459157]
[1767882751870,0.852,3074.4,3072.5,3.25464202]
[1767882752085,0.34888899,3074.5,3072.7,3.25446367]
[1767882752289,0.001,3075.1,3072.7,6.50893042]
[1767882752492,0.852,3075.0,3073.0,0.05851375]
[1767882752695,3.25293002,3075.1,3072.9,3.4303761]
[1767882752872,0.001,3075.1,3073.0,1.00243519]
[1767882753079,0.001,3075.1,3073.6,0.05851375]
[1767882753280,0.001,3075.1,3073.8,0.05851375]
[1767882753504,3.4303761,3077.2,3074.5,0.05851375]
[1767882753680,0.852,3076.6,3074.7,0.05851375]
[1767882753880,6.50004874,3076.9,3074.5,0.05851375]
[1767882753881,3.25002437,3076.9,3074.5,0.05851375]
[1767882754093,0.852,3076.8,3074.2,0.05851375]
[1767882754285,6.50068256,3076.6,3074.2,9.75863637]
[1767882754900,3.4303761,3076.2,3074.2,6.50575758]
[1767882755105,0.852,3076.1,3074.2,6.50575758]
[1767882755500,0.05851375,3076.5,3074.2,13.01151516]
[1767882755817,6.50068256,3076.6,3074.3,0.05851375]
[1767882755818,1.50791963,3076.4,3074.3,0.05851375]
[1767882756376,3.25065825,3076.3,3074.4,9.75800154]
[1767882756590,6.5013165,3076.3,3074.4,6.50533436]
[1767882756803,6.5013165,3076.3,3074.4,3.25266718]
[1767882756991,0.80092361,3076.2,3074.4,6.50533436]
[1767882757190,3.4303761,3076.6,3074.4,6.50533436]
[1767882757191,0.73520487,3076.7,3074.5,0.05851375]
[1767882757391,6.4998375,3077.0,3074.5,0.05851375]
[1767882757597,0.851,3076.9,3074.5,0.05851375]
[1767882757976,3.4303761,3076.8,3074.4,9.75800154]
[1767882758178,3.4303761,3076.8,3074.4,6.50533436]
[1767882758408,13.00094256,3076.7,3074.2,3.25287879]
[1767882758590,0.05851375,3076.6,3074.2,3.25287879]
[1767882758905,3.4303761,3076.3,3074.2,6.50575758]
[1767882759146,0.16,3076.6,3074.2,6.50575758]
[1767882759278,0.851,3076.2,3074.2,6.50575758]
[1767882759610,10.18469591,3076.7,3074.2,9.75863637]
[1767882759769,6.93446027,3076.7,3074.3,0.05851375]
[1767882759973,0.851,3076.6,3074.5,0.05851375]
[1767882760305,3.68422463,3076.7,3074.7,0.05851375]
[1767882760513,0.851,3076.6,3074.8,9.75673212]
[1767882760714,0.851,3076.6,3074.8,13.18710822]
[1767882760909,0.851,3076.6,3074.8,3.25224404]
[1767882761091,0.851,3076.6,3074.8,6.50448808]
[1767882761289,3.24991875,3077.0,3074.9,0.05851375]
[1767882761529,0.851,3076.9,3074.9,0.05851375]
[1767882761706,0.73508375,3076.8,3074.9,0.05851375]
[1767882762328,0.851,3076.9,3075.4,0.05851375]
[1767882762503,4.10102713,3076.9,3075.5,3.25150382]
[1767882763028,4.10102713,3076.9,3074.9,0.05851375]
[1767882763329,10.60108139,3076.9,3075.1,3.31043751]
[1767882763496,10.60108139,3076.9,3075.2,3.25175683]
[1767882763697,10.60108139,3076.9,3074.5,0.21851375]
[1767882763698,1.06010814,3076.8,3073.9,17.75317404]
[1767882764033,0.16,3076.7,3074.4,0.05851375]
[1767882764333,0.851,3076.6,3074.9,3.25204046]
[1767882764492,3.25044693,3076.5,3075.0,0.05851375]
[1767882765014,0.851,3076.4,3075.0,0.05851375]
[1767882765322,0.851,3076.4,3074.6,3.31094509]
[1767882765534,0.851,3076.4,3074.2,0.05851375]
[1767882765737,4.2813761,3076.4,3073.6,3.4303761]
[1767882765906,4.2813761,3076.4,3073.0,0.05851375]
[1767882765907,0.16,3075.8,3073.0,0.05851375]
[1767882766097,1.21003761,3075.7,3073.5,3.25354764]
[1767882766297,1.21003761,3075.7,3073.0,4.25654525]
[1767882766491,9.7541943,3075.6,3073.3,0.05851375]
[1767882766723,0.851,3075.5,3073.5,3.48888985]
[1767882766928,0.73537962,3075.4,3073.5,0.05851375]
[1767882767347,0.73537962,3075.4,3074.1,0.002]
[1767882767829,3.4303761,3074.9,3072.9,2.02e-06]
[1767882768032,0.97628081,3075.2,3072.9,2.02e-06]
[1767882768033,3.4303761,3074.4,3072.9,2.02e-06]
[1767882768231,0.34303761,3074.3,3072.9,2.02e-06]
[1767882768535,9.75863637,3074.2,3072.9,2.02e-06]
[1767882768844,0.851,3074.1,3072.9,2.02e-06]
[1767882769139,3.4303761,3073.9,3072.9,2.02e-06]
[1767882769692,3.4303761,3073.9,3071.6,0.06051375]
[1767882769693,3.4303761,3073.4,3071.6,0.002]
[1767882769927,0.851,3073.3,3071.6,0.002]
[1767882770625,3.25393726,3073.2,3071.6,0.002]
[1767882770828,4.10493726,3073.2,3071.6,0.06051375]
[1767882770994,7.35887452,3073.2,3071.6,0.06051375]
[1767882771326,7.35887452,3073.2,3071.6,0.002]
[1767882771667,7.35887452,3073.2,3070.9,0.002]
[1767882771668,0.16,3072.4,3070.9,0.002]
[1767882771797,0.05851375,3073.0,3070.9,0.002]
[1767882771991,1.011,3072.9,3070.9,0.002]
[1767882772216,0.851,3072.8,3070.9,0.002]
[1767882772430,0.851,3072.7,3071.0,3.25626696]
[1767882772591,6.50914534,3072.6,3070.9,0.002]
[1767882772795,0.05851375,3073.5,3071.6,3.4303761]
[1767882772796,3.25361965,3073.5,3071.6,3.4303761]
[1767882773091,0.851,3073.4,3071.6,3.4303761]
[1767882773298,0.851,3073.4,3071.0,0.05851375]
[1767882773644,9.76085895,3073.5,3071.4,0.05851375]
[1767882773935,0.851,3073.3,3071.2,0.05851375]
[1767882774224,3.25287879,3074.2,3071.9,0.05851375]
[1767882774427,6.50575758,3074.2,3072.4,0.05851375]
[1767882774720,3.4303761,3075.2,3072.4,0.05851375]
[1767882774721,0.851,3074.1,3073.0,0.05851375]
[1767882774921,6.50343054,3075.3,3073.1,0.05851375]
[1767882775093,0.852,3075.2,3072.8,0.05851375]
[1767882775290,0.852,3075.2,3072.6,0.05851375]
[1767882775530,1.38588611,3075.1,3072.8,0.05851375]
[1767882775741,3.4303761,3074.4,3072.5,3.2546786]
[1767882776045,0.16,3074.8,3072.5,3.2546786]
[1767882776212,0.852,3074.3,3072.5,3.2546786]
[1767882776728,7.35775758,3074.2,3072.2,4.16296811]
[1767882776931,7.35775758,3074.2,3072.1,9.76530711]
[1767882776932,0.852,3074.1,3072.1,3.25510237]
[1767882777238,0.852,3074.0,3072.2,0.05851375]
[1767882777727,0.852,3073.9,3072.4,0.05851375]
[1767882777944,0.852,3073.9,3072.2,0.05851375]
[1767882778139,0.852,3073.9,3072.1,6.51020474]
[1767882778341,0.852,3073.8,3072.1,6.51020474]
[1767882778510,6.50681588,3073.7,3071.7,6.51101385]
[1767882778703,4.10533721,3073.8,3071.8,0.05851375]